bitfinex-derivatives/quotes_SOLF0:USTF0_20250514
["timestamp","ask_amount","ask_price","bid_price","bid_amount"]
[1747219712503,121.5369,179.97,179.84,6.21521822]
[1747219712705,5.557,179.95,179.91,5.5579]
[1747219714610,5.5566,179.96,179.89,58.94]
[1747219714810,121.5369,179.97,179.89,58.94]
[1747219715409,5.557,179.95,179.91,5.5579]
[1747219715612,121.5369,179.97,179.91,5.5579]
[1747219715909,121.5369,179.97,179.89,58.94]
[1747219716510,121.5369,179.97,179.9,5.5583]
[1747219716710,121.5369,179.97,179.89,58.94]
[1747219717014,5.5567,179.96,179.89,58.94]
[1747219717311,121.5369,179.97,179.89,58.94]
[1747219718410,5.557,179.95,179.91,5.5579]
[1747219718608,121.5369,179.97,179.91,5.5579]
[1747219718908,121.5369,179.97,179.89,58.94]
[1747219719610,5.5578,179.92,179.89,58.94]
[1747219719810,121.5369,179.97,179.89,58.94]
[1747219720111,121.5369,179.97,179.91,5.558]
[1747219720812,121.5369,179.97,179.9,5.5583]
[1747219721310,5.5579,179.92,179.9,5.5583]
[1747219721905,5.5575,179.93,179.9,5.5583]
[1747219722411,5.5578,179.92,179.9,5.5583]
[1747219722612,58.94,179.92,179.85,58.94]
[1747219723009,5.5585,179.9,179.87,5.559]
[1747219724309,5.5585,179.9,179.85,58.94]
[1747219724611,5.5581,179.91,179.85,58.94]
[1747219725013,5.5583,179.9,179.85,58.94]
[1747219725712,5.5583,179.9,179.87,5.559]
[1747219727613,58.94,179.92,179.87,5.559]
[1747219728416,5.5585,179.9,179.87,5.559]
[1747219728615,58.94,179.92,179.85,58.94]
[1747219728817,64.4979,179.92,179.85,58.94]
[1747219729516,5.558,179.91,179.88,5.5588]
[1747219729914,58.94,179.92,179.85,58.94]
[1747219730212,63.28041822,179.92,179.85,58.94]
[1747219730414,3.7296,179.91,179.85,58.94]
[1747219730617,5.5588,179.89,179.86,5.5594]
[1747219731413,5.559,179.88,179.85,64.4997]
[1747219731818,3.7296,179.91,179.85,58.94]
[1747219732120,5.5588,179.89,179.86,5.5595]
[1747219732618,5.5584,179.9,179.87,5.5591]
[1747219733019,3.7296,179.91,179.87,5.5591]
[1747219733220,5.5588,179.89,179.86,5.5595]
[1747219734320,5.5584,179.9,179.85,58.94]
[1747219734517,3.7296,179.91,179.85,58.94]
[1747219735418,5.5584,179.9,179.87,5.559]
[1747219736222,5.5587,179.89,179.87,5.559]
[1747219737124,5.5587,179.89,179.86,5.5594]
[1747219737417,5.559,179.88,179.86,5.5594]
[1747219737721,3.7296,179.91,179.85,64.4998]
[1747219738313,5.5591,179.88,179.85,64.4998]
[1747219738621,3.7296,179.91,179.86,5.5595]
[1747219738923,3.7296,179.91,179.85,58.94]
[1747219739221,3.7296,179.91,179.85,64.4997]
[1747219739423,5.5591,179.88,179.85,64.4997]
[1747219739623,58.92,179.87,179.78,58.96]
[1747219739825,58.92,179.87,179.82,5.5606]
[1747219740123,5.56,179.85,179.82,5.5606]
[1747219740324,58.92,179.87,179.81,5.561]
[1747219740725,58.92,179.87,179.78,58.96]
[1747219740919,58.92,179.87,179.8,5.5612]
[1747219741320,5.5607,179.83,179.8,5.5612]
[1747219741526,58.92,179.87,179.78,58.96]
[1747219741822,5.5603,179.84,179.78,58.96]
[1747219742021,58.92,179.87,179.78,58.96]
[1747219742520,5.5601,179.85,179.81,5.5609]
[1747219742911,5.5604,179.84,179.81,5.5609]
[1747219743117,58.92,179.87,179.78,58.96]
[1747219743728,5.5602,179.84,179.81,5.561]
[1747219745024,58.92,179.87,179.78,58.96]
[1747219745525,117.84,179.87,179.79,5.5615]
[1747219745825,117.84,179.87,179.78,58.96]
[1747219747228,5.5601,179.85,179.81,5.5608]
[1747219747525,5.5601,179.85,179.78,58.96]
[1747219748020,5.5601,179.85,179.74,4.34041822]
[1747219748227,4.34041822,179.86,179.75,58.92]
[1747219748617,5.5607,179.83,179.79,5.5615]
[1747219749227,5.5609,179.82,179.79,5.5615]
[1747219749527,4.34041822,179.86,179.8,5.5613]
[1747219749822,5.5608,179.83,179.8,5.5613]
[1747219750027,4.34041822,179.86,179.79,5.5616]
[1747219750430,5.561,179.82,179.79,5.5616]
[1747219751428,5.5614,179.8,179.75,58.92]
[1747219752726,5.5618,179.79,179.75,58.92]
[1747219752927,58.92,179.82,179.75,58.92]
[1747219753632,117.86,179.82,179.75,58.92]
[1747219753833,5.5622,179.78,179.75,64.4829]
[1747219755035,5.5622,179.78,179.76,5.5626]
[1747219755332,5.5622,179.78,179.75,58.92]
[1747219755333,5.5618,179.79,179.75,58.92]
[1747219755537,117.86,179.82,179.76,5.5626]
[1747219756136,5.5619,179.79,179.76,5.5626]
[1747219756336,117.86,179.82,179.76,5.5626]
[1747219757637,5.562,179.78,179.76,5.5626]
[1747219758038,117.86,179.82,179.75,58.92]
[1747219758533,117.86,179.82,179.76,5.5625]
[1747219758738,5.5622,179.78,179.75,58.92]
[1747219759239,5.5622,179.78,179.75,64.4827]
[1747219760035,5.5624,179.77,179.75,64.4827]
[1747219760246,5.5624,179.77,179.75,5.5627]
[1747219760639,64.4824,179.77,179.75,5.5627]
[1747219760839,64.4824,179.77,179.74,5.5632]
[1747219761141,58.92,179.77,179.71,58.94]
[1747219761343,58.92,179.77,179.76,5.5626]
[1747219762549,58.92,179.77,179.75,5.5628]
[1747219763141,58.94,179.82,179.71,58.94]
[1747219763347,117.86,179.82,179.72,58.92]
[1747219763846,123.4211,179.82,179.78,5.5618]
[1747219764057,123.4211,179.82,179.72,58.92]
[1747219764547,123.4211,179.82,179.79,5.5617]
[1747219765946,5.5606,179.83,179.8,5.5614]
[1747219766146,3.6787,179.85,179.76,58.94]
[1747219766343,62.5987,179.85,179.76,58.94]
[1747219766544,68.1588,179.85,179.76,58.94]
[1747219767149,68.1588,179.85,179.82,5.5605]
[1747219767442,58.94,179.88,179.76,63.28041822]
[1747219767641,58.92,179.87,179.76,63.28041822]
[1747219767848,58.92,179.87,179.77,58.92]
[1747219768048,64.4794,179.87,179.84,5.56]
[1747219768550,58.92,179.87,179.77,58.92]
[1747219768738,64.4792,179.87,179.77,58.92]
[1747219769446,64.4792,179.87,179.83,5.5603]
[1747219769842,64.4792,179.87,179.77,58.92]
[1747219770348,64.4792,179.87,179.83,5.5603]
[1747219773253,5.5598,179.86,179.83,5.5603]
[1747219773452,58.92,179.87,179.77,58.92]
[1747219773845,64.4794,179.87,179.77,58.92]
[1747219774046,64.4794,179.87,179.83,5.5602]
[1747219774951,64.4794,179.87,179.77,58.92]
[1747219775564,64.4794,179.87,179.84,5.5602]
[1747219775851,64.4391,179.88,179.81,58.88]
[1747219776351,5.5591,179.88,179.81,58.88]
[1747219776554,5.5593,179.87,179.84,5.5599]
[1747219777549,3.6834,179.92,179.81,58.88]
[1747219777749,3.6834,179.92,179.82,63.22041822]
[1747219777950,58.88,179.94,179.82,63.22041822]
[1747219778151,58.88,179.94,179.82,74.34181822]
[1747219778454,1.8523,179.97,179.85,4.34041822]
[1747219778655,1.8523,179.97,179.94,5.5568]
[1747219778852,1.8523,179.97,179.91,58.88]
[1747219779054,58.86,179.98,179.91,58.88]
[1747219779451,63.22041822,180.01,179.91,58.88]
[1747219779651,58.86,180.0,179.91,58.88]
[1747219780355,5.5562,179.97,179.91,58.88]
[1747219780554,58.86,180.0,179.91,58.88]
[1747219780859,5.5563,179.97,179.93,5.5573]
[1747219781158,4.34041822,179.98,179.87,58.86]
[1747219781454,5.5579,179.92,179.87,58.86]
[1747219781654,64.4179,179.92,179.87,58.86]
[1747219782153,58.86,179.92,179.87,58.86]
[1747219782955,6.14041822,179.97,179.87,58.86]
[1747219782956,58.84,179.96,179.87,58.86]
[1747219783353,64.3967,179.96,179.92,5.5575]
[1747219784556,64.3967,179.96,179.93,5.5573]
[1747219784958,64.3967,179.96,179.92,5.5575]
[1747219786561,64.3967,179.96,179.93,5.5574]
[1747219786755,64.3967,179.96,179.87,58.86]
[1747219787257,5.5567,179.96,179.87,58.86]
[1747219787857,66.1763,179.97,179.87,58.86]
[1747219788056,66.1763,179.97,179.93,5.5573]
[1747219789262,5.5566,179.96,179.93,5.5573]
[1747219790160,5.5561,179.98,179.87,58.86]
[1747219790362,58.82,179.97,179.87,58.86]
[1747219790661,58.82,179.97,179.89,4.34041822]
[1747219790860,58.82,179.97,179.95,5.5565]
[1747219791756,58.86,179.99,179.96,5.5565]
[1747219791962,58.82,180.0,179.96,5.5565]
[1747219792260,1.8067,180.03,179.92,58.86]
[1747219792454,58.82,180.01,179.92,58.86]
[1747219792955,63.16041822,180.01,179.86,7.99391822]
[1747219793262,63.16041822,180.01,179.87,58.86]
[1747219794357,5.5573,179.94,179.87,58.86]
[1747219794663,4.34041822,179.95,179.87,58.86]
[1747219794858,1.7557,179.93,179.87,58.86]
[1747219795862,5.5583,179.91,179.88,5.5587]
[1747219797063,5.5577,179.92,179.87,58.86]
[1747219797766,5.5577,179.92,179.89,5.5584]
[1747219797967,1.7557,179.93,179.87,58.86]
[1747219798563,5.5586,179.9,179.87,58.86]
[1747219799468,5.5587,179.89,179.87,64.4191]
[1747219801367,5.5587,179.89,179.87,58.86]
[1747219803067,1.7557,179.93,179.85,5.5598]
[1747219803273,1.7557,179.93,179.83,58.78]
[1747219803964,1.7557,179.93,179.83,63.12041822]
[1747219804471,1.7557,179.93,179.9,5.5583]
[1747219804673,1.8041,179.94,179.88,58.78]
[1747219805068,7.3613,179.94,179.9,5.5581]
[1747219805673,5.5574,179.93,179.88,58.78]
[1747219806167,1.8041,179.94,179.88,5.5588]
[1747219806370,1.8041,179.94,179.86,58.78]
[1747219806675,5.559,179.88,179.74,11.1262]
[1747219806971,5.559,179.88,179.8,4.34041822]
[1747219807465,5.559,179.88,179.85,5.5597]
[1747219808275,5.5587,179.89,179.85,5.5597]
[1747219808972,5.5587,179.89,179.86,5.5595]
[1747219809475,5.5587,179.89,179.85,5.5597]
[1747219809775,5.5592,179.88,179.84,58.78]
[1747219809971,1.8486,179.92,179.84,58.78]
[1747219810475,5.5594,179.87,179.84,58.78]
[1747219810977,5.5596,179.86,179.84,58.78]
[1747219811575,5.5593,179.87,179.84,58.78]
[1747219811878,58.76,179.88,179.85,5.5598]
[1747219812178,64.3191,179.88,179.85,5.5598]
[1747219812382,64.3191,179.88,179.84,58.78]
[1747219812383,58.76,179.88,179.86,5.5595]
[1747219813074,64.319,179.88,179.85,5.5597]
[1747219814686,64.319,179.88,179.86,5.5595]
[1747219814885,58.76,179.88,179.86,5.5595]
[1747219815581,4.34041822,179.91,179.84,58.78]
[1747219815887,1.8486,179.92,179.84,58.78]
[1747219816188,60.6086,179.92,179.84,58.78]
[1747219817787,5.5582,179.91,179.88,5.5589]
[1747219818187,60.6086,179.92,179.84,58.78]
[1747219818388,66.1664,179.92,179.84,58.78]
[1747219818591,60.6086,179.92,179.84,58.78]
[1747219818792,1.8041,179.94,179.84,58.78]
[1747219819489,58.74,179.95,179.84,58.78]
[1747219820288,64.2968,179.95,179.84,58.78]
[1747219820591,58.78,179.98,179.84,58.78]
[1747219820794,58.74,179.97,179.86,4.34041822]
[1747219821290,5.5568,179.96,179.86,4.34041822]
[1747219821991,1.8218,179.99,179.89,4.34041822]
[1747219822290,62.3341,180.0,179.9,117.52]
[1747219822691,5.5556,179.99,179.95,5.5566]
[1747219823692,66.0935,180.0,179.96,5.5564]
[1747219824191,60.5418,180.02,179.95,58.78]
[1747219824582,5.5551,180.01,179.97,5.5559]
[1747219825489,1.8218,180.02,179.95,58.78]
[1747219826293,1.7893,180.04,179.95,121.84041822]
[1747219827591,7.3433,180.04,179.95,121.84041822]
[1747219828093,1.7893,180.04,179.95,121.84041822]
[1747219828687,5.5552,180.01,179.97,5.556]
[1747219828999,1.7893,180.04,179.95,117.5]
[1747219829498,5.5548,180.02,179.95,117.5]
[1747219829999,5.5548,180.02,179.97,5.5559]
[1747219830200,5.5549,180.01,179.97,5.5559]
[1747219830399,1.7893,180.04,179.95,117.5]
[1747219830697,1.7893,180.04,179.95,58.78]
[1747219830898,5.555,180.01,179.95,58.78]
[1747219831300,5.555,180.01,179.97,5.556]
[1747219832301,1.7893,180.04,179.95,58.78]
[1747219832503,58.78,180.07,179.95,63.12041822]
[1747219832706,58.68,180.06,179.95,63.12041822]
[1747219833101,58.68,180.06,179.95,58.78]
[1747219833402,5.5539,180.05,180.01,5.5546]
[1747219833801,60.5324,180.09,180.0,58.68]
[1747219834000,5.553,180.08,180.03,5.5541]
[1747219834204,60.5324,180.09,180.0,58.68]
[1747219834699,5.5531,180.07,180.03,5.5541]
[1747219834900,5.5531,180.07,180.0,58.68]
[1747219835101,60.5324,180.09,180.0,58.68]
[1747219835401,60.5324,180.09,180.0,58.66]
[1747219835804,5.5539,180.05,180.01,5.5547]
[1747219836302,60.5324,180.09,180.01,5.5547]
[1747219837806,5.5539,180.05,180.01,5.5547]
[1747219838008,5.5539,180.05,180.02,5.5545]
[1747219838508,60.5324,180.09,180.0,58.66]
[1747219839007,5.5533,180.07,180.04,5.554]
[1747219840307,58.64,180.08,180.0,58.66]
[1747219841008,5.5542,180.04,180.01,5.5549]
[1747219841908,58.64,180.08,180.0,58.66]
[1747219841909,5.5538,180.05,180.0,58.66]
[1747219842208,58.64,180.08,180.02,5.5544]
[1747219842410,58.64,180.08,180.0,58.66]
[1747219842610,5.5542,180.04,180.0,58.66]
[1747219842810,5.5542,180.04,180.01,5.5547]
[1747219844016,5.5544,180.03,180.0,64.2152]
[1747219845215,5.5549,180.01,180.0,58.66]
[1747219845614,5.5549,180.01,179.94,58.62]
[1747219845615,5.5549,180.01,179.96,58.66]
[1747219845812,5.5549,180.01,179.96,64.2164]
[1747219846417,5.5554,180.0,179.96,58.66]
[1747219846915,58.62,180.03,179.96,58.66]
[1747219846916,5.556,179.98,179.96,58.66]
[1747219847112,3.6523,180.02,179.96,58.66]
[1747219847314,64.1921,180.02,179.92,58.66]
[1747219847613,64.1921,180.02,179.92,64.2176]
[1747219848109,5.5564,179.97,179.92,64.2176]
[1747219848316,64.1921,180.02,179.92,58.66]
[1747219848509,58.62,179.98,179.92,58.66]
[1747219849521,5.5573,179.94,179.92,58.66]
[1747219850113,5.5321,180.02,179.92,58.66]
[1747219850313,364.0,180.08,179.96,4.34041822]
[1747219850515,3.7511,180.12,179.99,4.34041822]
[1747219850710,3.7511,180.12,179.97,4.34041822]
[1747219850913,62.3711,180.12,179.98,117.28]
[1747219851122,4.34041822,180.11,180.01,5.5546]
[1747219851322,4.34041822,180.11,180.01,58.66]
[1747219851621,4.34041822,180.08,179.94,4.34041822]
[1747219851824,4.34041822,180.05,179.95,117.28]
[1747219852326,58.62,180.07,179.95,117.28]
[1747219852818,5.5542,180.04,179.95,117.28]
[1747219853222,58.62,180.07,179.95,117.28]
[1747219853416,5.5538,180.05,179.95,117.28]
[1747219853616,62.96041822,180.07,179.82,5.30775665]
[1747219853923,5.556,179.98,179.92,5.5576]
[1747219854119,58.62,180.01,179.9,117.28]
[1747219854416,58.62,180.01,179.9,122.8093]
[1747219856027,5.5556,179.99,179.93,5.5572]
[1747219856219,58.62,180.01,179.9,122.8093]
[1747219857326,58.62,180.01,179.9,5.5293]
[1747219857519,58.62,180.01,179.91,117.26]
[1747219857715,58.62,180.01,179.92,58.66]
[1747219860226,5.5555,180.0,179.94,5.5568]
[1747219860431,58.62,180.01,179.92,58.66]
[1747219860626,58.62,180.01,179.92,63.00041822]
[1747219860921,5.5548,180.02,179.92,63.00041822]
[1747219861828,5.5544,180.03,179.97,5.556]
[1747219862028,3.6896,180.05,179.97,58.66]
[1747219862327,3.6896,180.05,179.97,117.26]
[1747219862723,9.2433,180.05,179.99,5.5554]
[1747219863235,5.5524,180.1,180.04,5.5539]
[1747219863420,5.5524,180.1,180.03,58.6]
[1747219863622,64.2805,180.14,180.03,58.6]
[1747219863919,62.3713,180.14,180.04,4.34041822]
[1747219864329,62.3713,180.14,180.09,5.5524]
[1747219864526,62.3713,180.14,180.09,64.1524]
[1747219864722,62.3713,180.14,180.09,58.6]
[1747219865125,62.3713,180.14,180.05,58.6]
[1747219865626,58.58,180.13,180.05,58.6]
[1747219865927,4.34041822,180.12,180.02,58.58]
[1747219866728,5.553,180.08,180.03,5.5542]
[1747219866919,58.58,180.09,180.02,58.58]
[1747219867326,58.58,180.09,180.05,5.5535]
[1747219867628,60.38,180.13,180.02,58.58]
[1747219867826,5.5521,180.11,180.05,5.5535]
[1747219868028,58.58,180.12,180.05,5.5535]
[1747219868227,58.58,180.12,180.02,58.58]
[1747219868531,5.5525,180.09,180.04,5.5538]
[1747219868824,58.58,180.12,180.02,58.58]
[1747219869129,3.7713,180.14,180.02,58.58]
[1747219869429,62.3513,180.14,180.03,6.9962757]
[1747219869627,364.0,180.15,180.04,58.58]
[1747219870020,5.5504,180.16,180.11,5.5516]
[1747219870329,58.58,180.17,180.1,58.58]
[1747219870525,5.5503,180.16,180.1,64.1319]
[1747219870930,58.58,180.18,180.1,58.58]
[1747219871725,3.6448,180.19,180.1,58.58]
[1747219872022,58.58,180.18,180.1,58.58]
[1747219872229,62.2248,180.19,180.12,5.5515]
[1747219872427,62.2248,180.19,180.1,58.58]
[1747219873029,5.5507,180.15,180.1,58.58]
[1747219873527,62.2248,180.19,180.06,3.7228]
[1747219873724,62.2248,180.19,180.07,58.56]
[1747219875025,0.99031363,180.18,180.07,58.56]
[1747219875335,62.2248,180.19,180.07,58.56]
[1747219875532,5.5515,180.13,180.08,5.5527]
[1747219875728,58.66,180.14,180.03,58.56]
[1747219875930,60.7921,180.13,180.04,5.5538]
[1747219876236,60.7921,180.13,180.03,58.56]
[1747219876537,5.5527,180.09,180.05,5.5537]
[1747219876835,60.7921,180.13,180.03,58.56]
[1747219878234,5.5526,180.09,180.04,5.5539]
[1747219878430,58.98,180.08,180.04,5.5539]
[1747219878936,58.98,180.08,180.03,58.56]
[1747219879536,58.98,180.08,180.04,5.5539]
[1747219879936,58.98,180.08,180.05,5.5537]
[1747219880235,64.5328,180.08,180.03,58.56]
[1747219880430,58.98,180.08,180.03,58.56]
[1747219880627,58.98,180.08,180.05,5.5534]
[1747219880827,58.98,180.08,180.03,58.56]
[1747219881332,58.98,180.08,180.04,5.5539]
[1747219881536,58.98,180.08,180.03,58.56]
[1747219882037,58.98,180.08,180.05,5.5536]
[1747219882740,1.8721,180.13,180.03,58.56]
[1747219883038,60.6321,180.13,180.03,117.32]
[1747219883227,66.1836,180.13,180.08,5.5526]
[1747219883428,60.6321,180.13,180.08,5.5526]
[1747219883630,60.6321,180.13,180.03,117.32]
[1747219883931,5.5518,180.11,180.06,5.5534]
[1747219884333,5.5518,180.11,180.03,117.32]
[1747219884939,60.6121,180.13,180.05,5.5536]
[1747219885139,60.6121,180.13,180.03,58.56]
[1747219885435,5.5527,180.09,180.04,5.5538]
[1747219885839,5.5527,180.09,180.03,58.56]
[1747219886442,5.5522,180.1,180.05,5.5535]
[1747219886639,60.6121,180.13,180.05,5.5535]
[1747219887941,5.5523,180.1,180.05,5.5535]
[1747219888646,5.5523,180.1,180.03,58.56]
[1747219889342,5.5523,180.1,180.06,5.5533]
[1747219891646,5.5525,180.09,180.05,5.5536]
[1747219891847,5.5525,180.09,180.03,58.56]
[1747219892249,60.6121,180.13,180.03,58.56]
[1747219892847,60.6121,180.13,180.06,5.5531]
[1747219893149,60.6121,180.13,180.03,58.56]
[1747219893948,5.5521,180.11,180.06,5.5532]
[1747219894148,60.6121,180.13,180.03,58.56]
[1747219894351,3.8184,180.12,180.03,58.56]
[1747219894744,58.58,180.13,180.03,58.56]
[1747219894947,64.1313,180.13,180.08,5.5526]
[1747219895145,64.1313,180.13,180.03,58.56]
[1747219895348,58.58,180.13,180.03,58.56]
[1747219895548,5.5523,180.1,180.05,5.5535]
[1747219896050,5.5523,180.1,180.06,5.5533]
[1747219896550,58.58,180.13,180.07,5.5528]
[1747219896750,58.58,180.13,180.03,58.56]
[1747219897051,5.552,180.11,180.06,5.5532]
[1747219897453,58.58,180.13,180.06,5.5532]
[1747219897652,5.5523,180.1,180.06,5.5532]
[1747219897854,58.58,180.13,180.03,58.56]
[1747219898549,5.5523,180.1,180.06,5.5533]
[1747219898852,58.58,180.13,180.03,58.56]
[1747219899052,58.58,180.13,180.04,5.5539]
[1747219899445,1.8635,180.12,180.04,5.5539]
[1747219899646,6.23662691,180.12,180.03,58.56]
[1747219899849,370.23662691,180.12,179.99,58.56]
[1747219900056,4.37312691,180.09,179.99,58.56]
[1747219900255,5.5545,180.03,179.99,64.1155]
[1747219900455,120.8439,180.08,179.99,64.1155]
[1747219900856,5.5549,180.02,179.99,58.56]
[1747219901950,5.5549,180.01,179.99,58.56]
[1747219904460,5.5547,180.02,179.99,58.56]
[1747219904657,58.58,180.03,179.99,58.56]
[1747219905157,58.58,180.04,179.99,58.56]
[1747219905358,1.8522,180.05,180.0,5.555]
[1747219905558,5.5543,180.04,180.0,5.555]
[1747219905859,1.8522,180.05,179.99,58.56]
[1747219906160,5.5543,180.03,179.99,64.1152]
[1747219906453,5.5543,180.03,179.99,58.56]
[1747219906857,5.5543,180.03,179.99,64.1153]
[1747219908364,5.5547,180.02,179.99,58.56]
[1747219910268,1.8522,180.05,179.99,58.56]
[1747219910770,5.5549,180.02,179.99,58.56]
[1747219911267,1.8522,180.05,179.99,58.56]
[1747219911772,5.5549,180.02,179.99,58.56]
[1747219912472,5.555,180.01,179.99,58.56]
[1747219914376,1.8522,180.05,179.99,58.56]
[1747219914973,5.5547,180.02,179.99,58.56]
[1747219916072,5.555,180.01,179.99,58.56]
[1747219916373,1.8522,180.05,179.92,481.7998]
[1747219916674,5.5564,179.97,179.93,58.58]
[1747219917275,5.5565,179.96,179.93,58.58]
[1747219917870,62.95312691,180.03,179.84,0.96728465]
[1747219918071,58.58,179.99,179.86,4.37312691]
[1747219918572,62.1965,179.98,179.85,58.58]
[1747219918773,4.37312691,179.97,179.86,58.58]
[1747219918977,4.37312691,179.94,179.86,58.58]
[1747219919276,117.16,179.93,179.82,538.66]
[1747219921182,4.37312691,179.91,179.82,58.58]
[1747219921377,3.6644,179.9,179.78,58.6]
[1747219921679,4.37312691,179.88,179.78,64.1618]
[1747219921877,58.72,179.87,179.78,64.1618]
[1747219922078,58.72,179.87,179.78,58.6]
[1747219922481,5.5614,179.8,179.78,58.6]
[1747219922675,58.72,179.82,179.72,538.76]
[1747219922881,58.72,179.81,179.68,58.6]
[1747219923082,5.5626,179.76,179.68,58.6]
[1747219923285,64.0664,179.81,179.72,5.5638]
[1747219923482,5.5624,179.77,179.72,5.5638]
[1747219923681,5.5624,179.77,179.68,58.6]
[1747219923882,64.0664,179.81,179.68,58.6]
[1747219924084,64.0664,179.81,179.68,62.97312691]
[1747219924283,64.0664,179.81,179.69,4.37312691]
[1747219924582,5.5623,179.78,179.73,5.5635]
[1747219925083,64.0664,179.81,179.69,4.37312691]
[1747219925276,64.0664,179.81,179.7,59.02]
[1747219925477,64.0664,179.81,179.74,5.563]
[1747219925672,64.0664,179.81,179.73,58.76]
[1747219926284,64.0664,179.81,179.69,58.76]
[1747219927685,64.0664,179.81,179.73,5.5633]
[1747219927884,5.5621,179.78,179.73,5.5633]
[1747219929284,5.5624,179.77,179.69,58.76]
[1747219929484,64.0664,179.81,179.69,58.76]
[1747219929688,64.0664,179.81,179.7,5.5645]
[1747219929985,64.0664,179.81,179.69,58.76]
[1747219930389,4.37312691,179.79,179.69,64.3248]
[1747219930587,4.37312691,179.79,179.69,58.76]
[1747219930784,5.5641,179.72,179.69,58.76]
[1747219930984,59.18,179.73,179.69,58.76]
[1747219931185,59.18,179.76,179.69,58.76]
[1747219932491,5.5638,179.73,179.69,64.3245]
[1747219932681,5.5638,179.73,179.69,58.76]
[1747219933380,59.18,179.76,179.69,58.76]
[1747219933584,59.18,179.76,179.71,5.5642]
[1747219933790,59.18,179.76,179.69,58.76]
[1747219934885,64.7427,179.76,179.69,58.76]
[1747219935086,58.78,179.79,179.69,58.76]
[1747219935487,59.94,179.8,179.7,64.31312691]
[1747219935793,59.94,179.8,179.7,69.70812691]
[1747219936091,5.562,179.78,179.7,64.31312691]
[1747219936492,5.5624,179.77,179.7,64.31312691]
[1747219936789,59.94,179.8,179.7,64.31312691]
[1747219936991,5.5621,179.78,179.73,5.5633]
[1747219937193,5.5621,179.78,179.7,64.31312691]
[1747219937593,5.5621,179.78,179.73,5.5633]
[1747219937888,59.94,179.8,179.74,58.8]
[1747219938092,58.8,179.83,179.74,58.8]
[1747219938287,5.5616,179.8,179.74,58.8]
[1747219938592,118.76,179.83,179.75,5.5629]
[1747219938891,118.72,179.83,179.75,5.5629]
[1747219939994,5.5616,179.8,179.75,5.5629]
[1747219940195,5.5616,179.8,179.76,5.5626]
[1747219940395,5.5616,179.8,179.74,58.8]
[1747219941291,118.72,179.83,179.71,4.37312691]
[1747219941495,118.72,179.83,179.72,58.8]
[1747219941693,5.5626,179.77,179.72,64.3638]
[1747219942494,5.5626,179.77,179.73,5.5635]
[1747219942687,118.72,179.83,179.72,58.8]
[1747219943196,5.5624,179.77,179.73,5.5635]
[1747219943402,118.72,179.83,179.72,58.8]
[1747219943597,4.37312691,179.82,179.72,58.8]